[Event "Titled Tuesday Blitz July 25 Early 2023"]
[White "Kramnik, Vladimir"]
[Black "Amilal Munkhdalai"]
[WhiteFideId "4101588"]
[BlackFideId "4903250"]
[WhiteElo "2984"]
[BlackElo "2736"]
[Result "1-0"]
[Round "4"]
[TimeControl "180+2"]
[Date "2023.07.25"]
[WhiteClock "0:00:56"]
[BlackClock "0:00:29"]
[Board "25"]

1. e4 {[%clk 0:03:00]}  c5 {[%clk 0:02:57]} 2. Nf3 {[%clk 0:03:00]}  Nc6 {[%clk 0:02:57]} 3. c3 {[%clk 0:02:59]}  d5 {[%clk 0:02:54]} 4. exd5 {[%clk 0:02:58]}  Qxd5 {[%clk 0:02:54]} 5. Na3 {[%clk 0:02:58]}  Bg4 {[%clk 0:02:48]} 6. Be2 {[%clk 0:02:52]}  e6 {[%clk 0:02:45]} 7. h3 {[%clk 0:02:51]}  Bh5 {[%clk 0:02:45]} 8. O-O {[%clk 0:02:50]}  Nf6 {[%clk 0:02:45]} 9. d4 {[%clk 0:02:44]}  cxd4 {[%clk 0:02:37]} 10. Nb5 {[%clk 0:02:43]}  Rc8 {[%clk 0:02:36]} 11. Nbxd4 {[%clk 0:02:34]}  Nxd4 {[%clk 0:02:35]} 12. Nxd4 {[%clk 0:02:34]}  Bxe2 {[%clk 0:02:34]} 13. Qxe2 {[%clk 0:02:34]}  Bc5 {[%clk 0:02:33]} 14. Rd1 {[%clk 0:02:26]}  O-O {[%clk 0:02:32]} 15. Nb3 {[%clk 0:02:16]}  Qc6 {[%clk 0:02:07]} 16. Nxc5 {[%clk 0:02:12]}  Qxc5 {[%clk 0:02:07]} 17. Be3 {[%clk 0:02:12]}  Qa5 {[%clk 0:02:07]} 18. Bd4 {[%clk 0:02:01]}  Rfd8 {[%clk 0:01:56]} 19. Bxf6 {[%clk 0:01:54]}  gxf6 {[%clk 0:01:56]} 20. Qf3 {[%clk 0:01:54]}  f5 {[%clk 0:01:38]} 21. Qxb7 {[%clk 0:01:49]}  Rb8 {[%clk 0:01:37]} 22. Rxd8+ {[%clk 0:01:42]}  Qxd8 {[%clk 0:01:32]} 23. Qxa7 {[%clk 0:01:42]}  Rxb2 {[%clk 0:01:32]} 24. a4 {[%clk 0:01:40]}  Qd3 {[%clk 0:01:24]} 25. Qd4 {[%clk 0:01:32]}  Qe2 {[%clk 0:00:55]} 26. a5 {[%clk 0:01:21]}  Rd2 {[%clk 0:00:55]} 27. Qe3 {[%clk 0:01:11]}  Rd1+ {[%clk 0:00:51]} 28. Rxd1 {[%clk 0:01:10]}  Qxd1+ {[%clk 0:00:52]} 29. Kh2 {[%clk 0:01:10]}  Qa4 {[%clk 0:00:53]} 30. Qg3+ {[%clk 0:01:02]}  Kf8 {[%clk 0:00:52]} 31. Qd6+ {[%clk 0:01:01]}  Ke8 {[%clk 0:00:49]} 32. a6 {[%clk 0:01:00]}  h5 {[%clk 0:00:29]} 33. Qb8+ {[%clk 0:00:56]} 1-0


[Site "https://www.chess.com"]

[Event "Titled Tuesday Blitz July 25 Early 2023"]
[White "Sjugirov, Sanan"]
[Black "Suyarov, Mukhammadzokhid"]
[WhiteFideId "4189302"]
[BlackFideId "14210495"]
[WhiteElo "2938"]
[BlackElo "2726"]
[Result "0-1"]
[Round "4"]
[TimeControl "180+2"]
[Date "2023.07.25"]
[WhiteClock "0:00:01"]
[BlackClock "0:00:12"]
[Board "28"]

1. e4 {[%clk 0:03:00]}  e6 {[%clk 0:03:00]} 2. d4 {[%clk 0:03:00]}  d5 {[%clk 0:03:00]} 3. e5 {[%clk 0:02:58]}  c5 {[%clk 0:03:00]} 4. c3 {[%clk 0:02:59]}  Nc6 {[%clk 0:03:00]} 5. Nf3 {[%clk 0:03:00]}  Bd7 {[%clk 0:03:00]} 6. Be2 {[%clk 0:02:59]}  f6 {[%clk 0:02:58]} 7. O-O {[%clk 0:02:55]}  fxe5 {[%clk 0:02:57]} 8. Nxe5 {[%clk 0:02:39]}  Nxe5 {[%clk 0:02:57]} 9. dxe5 {[%clk 0:02:40]}  Ne7 {[%clk 0:02:55]} 10. Bf4 {[%clk 0:02:37]}  Qb6 {[%clk 0:02:52]} 11. Qd2 {[%clk 0:02:22]}  Ng6 {[%clk 0:02:46]} 12. Bg3 {[%clk 0:02:22]}  Be7 {[%clk 0:02:46]} 13. c4 {[%clk 0:02:14]}  d4 {[%clk 0:02:30]} 14. Bd3 {[%clk 0:02:13]}  Bc6 {[%clk 0:02:24]} 15. Qc2 {[%clk 0:02:02]}  O-O-O {[%clk 0:02:21]} 16. Nd2 {[%clk 0:01:57]}  Nh4 {[%clk 0:02:16]} 17. Bxh4 {[%clk 0:01:55]}  Bxh4 {[%clk 0:02:16]} 18. Ne4 {[%clk 0:01:44]}  Be7 {[%clk 0:02:03]} 19. a3 {[%clk 0:01:42]}  Qc7 {[%clk 0:01:51]} 20. f4 {[%clk 0:01:30]}  Bxe4 {[%clk 0:01:45]} 21. Bxe4 {[%clk 0:01:30]}  g5 {[%clk 0:01:44]} 22. fxg5 {[%clk 0:01:13]}  Bxg5 {[%clk 0:01:42]} 23. b4 {[%clk 0:01:09]}  Qxe5 {[%clk 0:01:37]} 24. Qd3 {[%clk 0:01:02]}  Be3+ {[%clk 0:01:30]} 25. Kh1 {[%clk 0:01:02]}  Rhf8 {[%clk 0:01:22]} 26. Rab1 {[%clk 0:00:53]}  cxb4 {[%clk 0:01:06]} 27. axb4 {[%clk 0:00:52]}  Kb8 {[%clk 0:01:01]} 28. c5 {[%clk 0:00:51]}  h5 {[%clk 0:00:59]} 29. Bf3 {[%clk 0:00:35]}  h4 {[%clk 0:00:54]} 30. Qb5 {[%clk 0:00:24]}  Qc7 {[%clk 0:00:37]} 31. Be4 {[%clk 0:00:19]}  h3 {[%clk 0:00:35]} 32. gxh3 {[%clk 0:00:16]}  Rxf1+ {[%clk 0:00:26]} 33. Rxf1 {[%clk 0:00:15]}  d3 {[%clk 0:00:26]} 34. c6 {[%clk 0:00:07]}  d2 {[%clk 0:00:26]} 35. Qe2 {[%clk 0:00:06]}  Qf4 {[%clk 0:00:19]} 36. Bf3 {[%clk 0:00:03]}  bxc6 {[%clk 0:00:19]} 37. b5 {[%clk 0:00:01]}  c5 {[%clk 0:00:19]} 38. b6 {[%clk 0:00:02]}  a6 {[%clk 0:00:19]} 39. Rd1 {[%clk 0:00:01]}  Rf8 {[%clk 0:00:18]} 40. Bg2 {[%clk 0:00:02]}  c4 {[%clk 0:00:16]} 41. Ra1 {[%clk 0:00:02]}  Qf2 {[%clk 0:00:15]} 42. Qxc4 {[%clk 0:00:01]}  Qe1+ {[%clk 0:00:16]} 43. Bf1 {[%clk 0:00:01]}  Rxf1+ {[%clk 0:00:14]} 44. Qxf1 {[%clk 0:00:01]}  Bd4 {[%clk 0:00:12]} 45. Rd1 {[%clk 0:00:01]}  Bc3 {[%clk 0:00:12]} 0-1


[Site "https://www.chess.com"]

[Event "Titled Tuesday Blitz July 25 Early 2023"]
[White "Megaranto, Susanto"]
[Black "Timerkhanov, Alexander"]
[WhiteFideId "7101384"]
[BlackFideId "24177938"]
[WhiteElo "2929"]
[BlackElo "2684"]
[Result "1-0"]
[Round "4"]
[TimeControl "180+2"]
[Date "2023.07.25"]
[WhiteClock "0:01:44"]
[BlackClock "0:00:30"]
[Board "29"]

1. e4 {[%clk 0:02:59]}  c5 {[%clk 0:02:59]} 2. Nf3 {[%clk 0:02:57]}  a6 {[%clk 0:02:58]} 3. c3 {[%clk 0:02:56]}  d5 {[%clk 0:02:58]} 4. exd5 {[%clk 0:02:57]}  Qxd5 {[%clk 0:02:59]} 5. d4 {[%clk 0:02:58]}  e6 {[%clk 0:02:59]} 6. Be2 {[%clk 0:02:58]}  Nf6 {[%clk 0:02:59]} 7. O-O {[%clk 0:02:59]}  Nc6 {[%clk 0:02:59]} 8. Be3 {[%clk 0:03:00]}  cxd4 {[%clk 0:02:59]} 9. cxd4 {[%clk 0:02:59]}  Be7 {[%clk 0:02:59]} 10. Nc3 {[%clk 0:03:00]}  Qd6 {[%clk 0:03:00]} 11. Bd3 {[%clk 0:02:59]}  O-O {[%clk 0:02:59]} 12. Rc1 {[%clk 0:02:59]}  b5 {[%clk 0:02:59]} 13. Ne4 {[%clk 0:02:57]}  Nxe4 {[%clk 0:02:55]} 14. Bxe4 {[%clk 0:02:58]}  Bb7 {[%clk 0:02:55]} 15. Ne5 {[%clk 0:02:58]}  Nxe5 {[%clk 0:02:38]} 16. Bxb7 {[%clk 0:02:53]}  Rab8 {[%clk 0:02:38]} 17. dxe5 {[%clk 0:02:47]}  Qxd1 {[%clk 0:02:37]} 18. Rfxd1 {[%clk 0:02:48]}  Rxb7 {[%clk 0:02:37]} 19. Rc6 {[%clk 0:02:48]}  a5 {[%clk 0:02:36]} 20. f4 {[%clk 0:02:44]}  g6 {[%clk 0:02:34]} 21. Kf2 {[%clk 0:02:44]}  Kg7 {[%clk 0:02:33]} 22. Kf3 {[%clk 0:02:41]}  a4 {[%clk 0:02:32]} 23. g4 {[%clk 0:02:33]}  Rd8 {[%clk 0:02:27]} 24. Rxd8 {[%clk 0:02:28]}  Bxd8 {[%clk 0:02:27]} 25. f5 {[%clk 0:02:29]}  gxf5 {[%clk 0:02:25]} 26. gxf5 {[%clk 0:02:29]}  Bc7 {[%clk 0:02:02]} 27. Ke4 {[%clk 0:02:23]}  exf5+ {[%clk 0:01:11]} 28. Kxf5 {[%clk 0:02:24]}  h5 {[%clk 0:01:11]} 29. h3 {[%clk 0:02:19]}  Bb8 {[%clk 0:01:09]} 30. Rc8 {[%clk 0:02:03]}  b4 {[%clk 0:01:06]} 31. Bg5 {[%clk 0:02:02]}  Bxe5 {[%clk 0:00:40]} 32. Kxe5 {[%clk 0:02:00]}  Rb5+ {[%clk 0:00:41]} 33. Kf4 {[%clk 0:02:00]}  b3 {[%clk 0:00:38]} 34. a3 {[%clk 0:01:55]}  Rd5 {[%clk 0:00:37]} 35. Rc6 {[%clk 0:01:47]}  Rd2 {[%clk 0:00:36]} 36. Bf6+ {[%clk 0:01:46]}  Kh7 {[%clk 0:00:34]} 37. Bc3 {[%clk 0:01:46]}  Rd3 {[%clk 0:00:30]} 38. h4 {[%clk 0:01:44]} 1-0


[Site "https://www.chess.com"]

[Event "Titled Tuesday Blitz July 25 Early 2023"]
[White "Becerra Rivero, Julio"]
[Black "Nagare Kaivalya Sandip"]
[WhiteFideId "3501728"]
[BlackFideId "25957929"]
[WhiteElo "2874"]
[BlackElo "2665"]
[Result "1-0"]
[Round "4"]
[TimeControl "180+2"]
[Date "2023.07.25"]
[WhiteClock "0:00:45"]
[BlackClock "0:00:08"]
[Board "30"]

1. e4 {[%clk 0:03:00]}  c5 {[%clk 0:02:52]} 2. Nf3 {[%clk 0:03:00]}  d6 {[%clk 0:02:51]} 3. c3 {[%clk 0:02:59]}  Nf6 {[%clk 0:02:48]} 4. Be2 {[%clk 0:02:59]}  Nc6 {[%clk 0:02:47]} 5. d4 {[%clk 0:02:59]}  e5 {[%clk 0:02:41]} 6. dxe5 {[%clk 0:02:49]}  dxe5 {[%clk 0:02:39]} 7. Qxd8+ {[%clk 0:02:47]}  Kxd8 {[%clk 0:02:40]} 8. Bg5 {[%clk 0:02:43]}  h6 {[%clk 0:02:28]} 9. Bxf6+ {[%clk 0:02:43]}  gxf6 {[%clk 0:02:29]} 10. Nh4 {[%clk 0:02:38]}  Be6 {[%clk 0:02:26]} 11. Nd2 {[%clk 0:02:35]}  Kc7 {[%clk 0:02:25]} 12. g4 {[%clk 0:02:16]}  Ne7 {[%clk 0:01:58]} 13. h3 {[%clk 0:02:03]}  Ng6 {[%clk 0:01:58]} 14. Nxg6 {[%clk 0:02:02]}  fxg6 {[%clk 0:01:58]} 15. Bc4 {[%clk 0:02:02]}  Bd7 {[%clk 0:01:51]} 16. Ke2 {[%clk 0:01:59]}  h5 {[%clk 0:01:51]} 17. f3 {[%clk 0:01:56]}  Bh6 {[%clk 0:01:46]} 18. Rag1 {[%clk 0:01:44]}  Bf4 {[%clk 0:01:39]} 19. Bd5 {[%clk 0:01:37]}  Rh6 {[%clk 0:01:29]} 20. gxh5 {[%clk 0:01:32]}  g5 {[%clk 0:01:26]} 21. h4 {[%clk 0:01:31]}  Rah8 {[%clk 0:01:19]} 22. hxg5 {[%clk 0:01:30]}  Rxh5 {[%clk 0:01:13]} 23. Rxh5 {[%clk 0:01:26]}  Rxh5 {[%clk 0:01:14]} 24. Nf1 {[%clk 0:01:03]}  fxg5 {[%clk 0:01:08]} 25. b3 {[%clk 0:01:01]}  g4 {[%clk 0:00:55]} 26. fxg4 {[%clk 0:00:58]}  Rh3 {[%clk 0:00:53]} 27. g5 {[%clk 0:00:52]}  Rxc3 {[%clk 0:00:45]} 28. g6 {[%clk 0:00:52]}  Rc2+ {[%clk 0:00:28]} 29. Kd3 {[%clk 0:00:48]}  Rf2 {[%clk 0:00:14]} 30. g7 {[%clk 0:00:46]}  Bb5+ {[%clk 0:00:08]} 31. Bc4 {[%clk 0:00:45]} 1-0


[Site "https://www.chess.com"]

[Event "Titled Tuesday Blitz July 25 Early 2023"]
[White "Attacker_2006"]
[Black "Remizov, Yaroslav"]
[BlackFideId "34134015"]
[WhiteElo "2390"]
[BlackElo "2760"]
[Result "0-1"]
[Round "4"]
[TimeControl "180+2"]
[Date "2023.07.25"]
[WhiteClock "0:00:01"]
[BlackClock "0:00:12"]
[Board "35"]

1. e4 {[%clk 0:03:00]}  c6 {[%clk 0:02:59]} 2. d4 {[%clk 0:03:00]}  d5 {[%clk 0:03:00]} 3. e5 {[%clk 0:03:00]}  Bf5 {[%clk 0:03:00]} 4. h4 {[%clk 0:03:00]}  h5 {[%clk 0:03:00]} 5. Bd3 {[%clk 0:03:00]}  Bxd3 {[%clk 0:03:00]} 6. Qxd3 {[%clk 0:03:01]}  Qa5+ {[%clk 0:03:00]} 7. Nd2 {[%clk 0:02:56]}  e6 {[%clk 0:03:00]} 8. Nf3 {[%clk 0:02:53]}  Nh6 {[%clk 0:02:59]} 9. c4 {[%clk 0:02:50]}  Nf5 {[%clk 0:02:57]} 10. b3 {[%clk 0:02:48]}  Be7 {[%clk 0:02:54]} 11. O-O {[%clk 0:02:40]}  Nxh4 {[%clk 0:02:47]} 12. Nxh4 {[%clk 0:02:39]}  Bxh4 {[%clk 0:02:48]} 13. Nf3 {[%clk 0:02:39]}  Be7 {[%clk 0:02:47]} 14. Bg5 {[%clk 0:02:35]}  Qd8 {[%clk 0:02:42]} 15. Qe3 {[%clk 0:02:21]}  Nd7 {[%clk 0:02:32]} 16. Qf4 {[%clk 0:02:14]}  h4 {[%clk 0:02:27]} 17. c5 {[%clk 0:01:57]}  h3 {[%clk 0:02:24]} 18. g4 {[%clk 0:01:57]}  Nf8 {[%clk 0:02:22]} 19. b4 {[%clk 0:01:54]}  Ng6 {[%clk 0:02:21]} 20. Qe3 {[%clk 0:01:54]}  h2+ {[%clk 0:02:05]} 21. Kh1 {[%clk 0:01:52]}  Rh3 {[%clk 0:01:57]} 22. Bxe7 {[%clk 0:01:38]}  Qxe7 {[%clk 0:01:56]} 23. Kg2 {[%clk 0:01:39]}  Rh8 {[%clk 0:01:19]} 24. Rh1 {[%clk 0:01:33]}  O-O-O {[%clk 0:01:09]} 25. Rxh2 {[%clk 0:01:30]}  Rxh2+ {[%clk 0:01:09]} 26. Kxh2 {[%clk 0:01:30]}  Rh8+ {[%clk 0:01:07]} 27. Kg2 {[%clk 0:01:30]}  Nh4+ {[%clk 0:01:06]} 28. Nxh4 {[%clk 0:01:30]}  Qxh4 {[%clk 0:01:07]} 29. Qg3 {[%clk 0:01:26]}  Qh7 {[%clk 0:01:07]} 30. Re1 {[%clk 0:01:15]}  Kd7 {[%clk 0:00:57]} 31. a4 {[%clk 0:01:10]}  Qc2 {[%clk 0:00:54]} 32. Qf4 {[%clk 0:01:01]}  Ke8 {[%clk 0:00:51]} 33. b5 {[%clk 0:00:36]}  Qc3 {[%clk 0:00:39]} 34. Rh1 {[%clk 0:00:16]}  Rxh1 {[%clk 0:00:37]} 35. Kxh1 {[%clk 0:00:16]}  Qa1+ {[%clk 0:00:37]} 36. Kg2 {[%clk 0:00:16]}  Qxa4 {[%clk 0:00:37]} 37. bxc6 {[%clk 0:00:16]}  bxc6 {[%clk 0:00:30]} 38. Qd2 {[%clk 0:00:16]}  Qb5 {[%clk 0:00:26]} 39. Kf3 {[%clk 0:00:15]}  a5 {[%clk 0:00:26]} 40. Ke3 {[%clk 0:00:14]}  a4 {[%clk 0:00:26]} 41. Qa2 {[%clk 0:00:15]}  g5 {[%clk 0:00:22]} 42. Kd2 {[%clk 0:00:14]}  Qb4+ {[%clk 0:00:20]} 43. Kd3 {[%clk 0:00:14]}  a3 {[%clk 0:00:19]} 44. Qc2 {[%clk 0:00:08]}  Kd7 {[%clk 0:00:16]} 45. Qc3 {[%clk 0:00:07]}  Qb5+ {[%clk 0:00:13]} 46. Kc2 {[%clk 0:00:07]}  a2 {[%clk 0:00:12]} 47. Qa3 {[%clk 0:00:04]}  Qb1+ {[%clk 0:00:11]} 48. Kd2 {[%clk 0:00:02]}  a1=Q {[%clk 0:00:12]} 49. Qa7+ {[%clk 0:00:01]}  Qxa7 {[%clk 0:00:12]} 0-1


[Site "https://www.chess.com"]

[Event "Titled Tuesday Blitz July 25 Early 2023"]
[White "Tomaszewski, Kacper"]
[Black "So, Wesley"]
[WhiteFideId "1127373"]
[BlackFideId "5202213"]
[WhiteElo "2463"]
[BlackElo "3091"]
[Result "0-1"]
[Round "4"]
[TimeControl "180+2"]
[Date "2023.07.25"]
[WhiteClock "0:00:01"]
[BlackClock "0:00:32"]
[Board "36"]

1. d4 {[%clk 0:03:00]}  d5 {[%clk 0:02:54]} 2. c4 {[%clk 0:02:58]}  e6 {[%clk 0:02:55]} 3. Nc3 {[%clk 0:02:58]}  Nf6 {[%clk 0:02:55]} 4. cxd5 {[%clk 0:02:57]}  exd5 {[%clk 0:02:56]} 5. Bg5 {[%clk 0:02:57]}  Bb4 {[%clk 0:02:55]} 6. Qa4+ {[%clk 0:02:50]}  Nc6 {[%clk 0:02:54]} 7. e3 {[%clk 0:02:49]}  h6 {[%clk 0:02:54]} 8. Bxf6 {[%clk 0:02:49]}  Qxf6 {[%clk 0:02:55]} 9. Nf3 {[%clk 0:02:40]}  O-O {[%clk 0:02:54]} 10. Bb5 {[%clk 0:02:38]}  Bxc3+ {[%clk 0:02:18]} 11. bxc3 {[%clk 0:02:39]}  Ne7 {[%clk 0:02:19]} 12. O-O {[%clk 0:02:36]}  Rd8 {[%clk 0:02:17]} 13. Be2 {[%clk 0:02:33]}  c5 {[%clk 0:02:00]} 14. dxc5 {[%clk 0:02:29]}  Bd7 {[%clk 0:01:57]} 15. Qd4 {[%clk 0:02:28]}  Qc6 {[%clk 0:01:51]} 16. Ne5 {[%clk 0:02:25]}  Qc7 {[%clk 0:01:51]} 17. Qf4 {[%clk 0:02:14]}  Be6 {[%clk 0:01:47]} 18. Bh5 {[%clk 0:01:53]}  f6 {[%clk 0:01:31]} 19. Ng6 {[%clk 0:01:49]}  Qxc5 {[%clk 0:01:31]} 20. Nxe7+ {[%clk 0:01:36]}  Qxe7 {[%clk 0:01:32]} 21. Qb4 {[%clk 0:01:29]}  Qxb4 {[%clk 0:01:21]} 22. cxb4 {[%clk 0:01:30]}  d4 {[%clk 0:01:22]} 23. exd4 {[%clk 0:01:29]}  Rxd4 {[%clk 0:01:23]} 24. a3 {[%clk 0:01:27]}  b6 {[%clk 0:01:18]} 25. Rfd1 {[%clk 0:01:21]}  Rad8 {[%clk 0:01:16]} 26. Rxd4 {[%clk 0:01:21]}  Rxd4 {[%clk 0:01:17]} 27. Rd1 {[%clk 0:01:20]}  Rc4 {[%clk 0:01:15]} 28. g3 {[%clk 0:00:37]}  Rc3 {[%clk 0:01:08]} 29. Bg6 {[%clk 0:00:37]}  Kf8 {[%clk 0:01:06]} 30. Rd3 {[%clk 0:00:36]}  Rc1+ {[%clk 0:00:58]} 31. Kg2 {[%clk 0:00:36]}  Ke7 {[%clk 0:00:59]} 32. Kf3 {[%clk 0:00:32]}  f5 {[%clk 0:00:54]} 33. Ke3 {[%clk 0:00:24]}  Kf6 {[%clk 0:00:51]} 34. Bh5 {[%clk 0:00:20]}  g5 {[%clk 0:00:51]} 35. Bf3 {[%clk 0:00:16]}  Ke5 {[%clk 0:00:47]} 36. Bb7 {[%clk 0:00:07]}  f4+ {[%clk 0:00:44]} 37. gxf4+ {[%clk 0:00:08]}  gxf4+ {[%clk 0:00:44]} 38. Kf3 {[%clk 0:00:08]}  a5 {[%clk 0:00:36]} 39. bxa5 {[%clk 0:00:09]}  bxa5 {[%clk 0:00:37]} 40. Ba8 {[%clk 0:00:04]}  a4 {[%clk 0:00:35]} 41. Bb7 {[%clk 0:00:04]}  h5 {[%clk 0:00:34]} 42. Ba8 {[%clk 0:00:03]}  Bc4 {[%clk 0:00:32]} 43. Rd8 {[%clk 0:00:02]}  Rc3+ {[%clk 0:00:32]} 44. Kg2 {[%clk 0:00:02]}  Rxa3 {[%clk 0:00:32]} 45. Rh8 {[%clk 0:00:01]}  Bf7 {[%clk 0:00:32]} 0-1


[Site "https://www.chess.com"]

[Event "Titled Tuesday Blitz July 25 Early 2023"]
[White "NicolaiMaxime"]
[Black "Kevlishvili, Robby"]
[BlackFideId "1040634"]
[WhiteElo "2611"]
[BlackElo "2992"]
[Result "0-1"]
[Round "4"]
[TimeControl "180+2"]
[Date "2023.07.25"]
[WhiteClock "0:00:01"]
[BlackClock "0:00:28"]
[Board "39"]

1. c4 {[%clk 0:02:59]}  Nf6 {[%clk 0:03:00]} 2. Nc3 {[%clk 0:02:59]}  g6 {[%clk 0:03:00]} 3. g3 {[%clk 0:03:00]}  Bg7 {[%clk 0:03:00]} 4. Bg2 {[%clk 0:03:00]}  O-O {[%clk 0:03:01]} 5. d4 {[%clk 0:03:01]}  d6 {[%clk 0:03:02]} 6. Nf3 {[%clk 0:03:01]}  Nc6 {[%clk 0:03:02]} 7. O-O {[%clk 0:03:01]}  a6 {[%clk 0:03:03]} 8. e4 {[%clk 0:03:02]}  Bg4 {[%clk 0:03:02]} 9. h3 {[%clk 0:03:01]}  Bxf3 {[%clk 0:03:03]} 10. Bxf3 {[%clk 0:03:02]}  Nd7 {[%clk 0:03:03]} 11. Be3 {[%clk 0:03:02]}  e5 {[%clk 0:03:03]} 12. d5 {[%clk 0:03:00]}  Nd4 {[%clk 0:03:04]} 13. Bg2 {[%clk 0:02:59]}  c5 {[%clk 0:03:03]} 14. dxc6 {[%clk 0:02:41]}  bxc6 {[%clk 0:03:04]} 15. Ne2 {[%clk 0:02:36]}  c5 {[%clk 0:02:58]} 16. Nc3 {[%clk 0:02:35]}  Rb8 {[%clk 0:02:57]} 17. b3 {[%clk 0:02:34]}  a5 {[%clk 0:02:56]} 18. f4 {[%clk 0:02:23]}  Re8 {[%clk 0:02:53]} 19. f5 {[%clk 0:02:23]}  Nb6 {[%clk 0:02:48]} 20. g4 {[%clk 0:02:22]}  a4 {[%clk 0:02:47]} 21. g5 {[%clk 0:02:21]}  Ra8 {[%clk 0:02:44]} 22. f6 {[%clk 0:02:03]}  Bf8 {[%clk 0:02:44]} 23. Rb1 {[%clk 0:02:02]}  axb3 {[%clk 0:02:44]} 24. axb3 {[%clk 0:02:03]}  Ra3 {[%clk 0:02:40]} 25. h4 {[%clk 0:01:59]}  Qd7 {[%clk 0:02:38]} 26. Kh2 {[%clk 0:01:57]}  h5 {[%clk 0:02:38]} 27. gxh6 {[%clk 0:01:53]}  Kh7 {[%clk 0:02:38]} 28. h5 {[%clk 0:01:54]}  Bxh6 {[%clk 0:02:23]} 29. Bxh6 {[%clk 0:01:35]}  Kxh6 {[%clk 0:02:22]} 30. Qc1+ {[%clk 0:01:35]}  g5 {[%clk 0:02:13]} 31. Qxa3 {[%clk 0:01:33]}  Qg4 {[%clk 0:02:14]} 32. Qc1 {[%clk 0:01:27]}  Qxh5+ {[%clk 0:02:11]} 33. Kg1 {[%clk 0:01:26]}  Kg6 {[%clk 0:02:10]} 34. Qe3 {[%clk 0:01:20]}  Rh8 {[%clk 0:02:04]} 35. Qg3 {[%clk 0:01:19]}  Nd7 {[%clk 0:02:04]} 36. Bf3 {[%clk 0:01:08]}  Qh6 {[%clk 0:01:50]} 37. Bg2 {[%clk 0:00:56]}  Nxf6 {[%clk 0:01:48]} 38. b4 {[%clk 0:00:35]}  Kg7 {[%clk 0:01:12]} 39. bxc5 {[%clk 0:00:35]}  Nh5 {[%clk 0:01:12]} 40. Qh2 {[%clk 0:00:33]}  Qg6 {[%clk 0:01:10]} 41. cxd6 {[%clk 0:00:20]}  Nf4 {[%clk 0:01:10]} 42. Qxh8+ {[%clk 0:00:14]}  Kxh8 {[%clk 0:01:11]} 43. d7 {[%clk 0:00:14]}  Qd6 {[%clk 0:01:02]} 44. Rb7 {[%clk 0:00:09]}  Nde6 {[%clk 0:00:42]} 45. Nd5 {[%clk 0:00:06]}  Kg7 {[%clk 0:00:33]} 46. Rd1 {[%clk 0:00:03]}  Qc5+ {[%clk 0:00:33]} 47. Kh2 {[%clk 0:00:03]}  Qf2 {[%clk 0:00:31]} 48. Nxf4 {[%clk 0:00:03]}  Nxf4 {[%clk 0:00:31]} 49. Rg1 {[%clk 0:00:01]}  Qh4+ {[%clk 0:00:27]} 50. Bh3 {[%clk 0:00:01]}  Qxh3# {[%clk 0:00:28]} 0-1


[Site "https://www.chess.com"]

[Event "Titled Tuesday Blitz July 25 Early 2023"]
[White "Ibarra Jerez, Jose Carlos"]
[Black "Nurgaliyeva, Zarina"]
[WhiteFideId "2226332"]
[BlackFideId "13730096"]
[WhiteElo "2935"]
[BlackElo "2601"]
[Result "1-0"]
[Round "4"]
[TimeControl "180+2"]
[Date "2023.07.25"]
[WhiteClock "0:01:36"]
[BlackClock "0:01:00"]
[Board "42"]

1. e4 {[%clk 0:02:54]}  e5 {[%clk 0:02:57]} 2. Nf3 {[%clk 0:02:55]}  Nc6 {[%clk 0:02:53]} 3. Nc3 {[%clk 0:02:55]}  Nf6 {[%clk 0:02:50]} 4. h3 {[%clk 0:02:55]}  d5 {[%clk 0:02:49]} 5. exd5 {[%clk 0:02:55]}  Nxd5 {[%clk 0:02:49]} 6. Bb5 {[%clk 0:02:56]}  Nxc3 {[%clk 0:02:47]} 7. bxc3 {[%clk 0:02:56]}  Bd6 {[%clk 0:02:47]} 8. O-O {[%clk 0:02:57]}  O-O {[%clk 0:02:47]} 9. d4 {[%clk 0:02:57]}  exd4 {[%clk 0:02:46]} 10. cxd4 {[%clk 0:02:58]}  h6 {[%clk 0:02:45]} 11. c4 {[%clk 0:02:56]}  Qf6 {[%clk 0:02:43]} 12. Bb2 {[%clk 0:02:56]}  Ne7 {[%clk 0:02:38]} 13. Qb3 {[%clk 0:02:51]}  c6 {[%clk 0:02:23]} 14. Ba4 {[%clk 0:02:49]}  Ng6 {[%clk 0:02:21]} 15. c5 {[%clk 0:02:44]}  Bc7 {[%clk 0:02:05]} 16. d5 {[%clk 0:02:43]}  Qf4 {[%clk 0:01:56]} 17. d6 {[%clk 0:02:33]}  Be6 {[%clk 0:01:55]} 18. Qc3 {[%clk 0:02:28]}  f6 {[%clk 0:01:45]} 19. Bb3 {[%clk 0:02:24]}  Bxb3 {[%clk 0:01:44]} 20. Qxb3+ {[%clk 0:02:24]}  Kh7 {[%clk 0:01:43]} 21. dxc7 {[%clk 0:02:25]}  Qxc7 {[%clk 0:01:44]} 22. Nd4 {[%clk 0:02:22]}  Rfe8 {[%clk 0:01:39]} 23. Rfe1 {[%clk 0:02:21]}  Qf4 {[%clk 0:01:28]} 24. Ne6 {[%clk 0:02:16]}  Qf5 {[%clk 0:01:25]} 25. Re3 {[%clk 0:02:00]}  Re7 {[%clk 0:01:15]} 26. Rae1 {[%clk 0:01:57]}  Rae8 {[%clk 0:01:11]} 27. g4 {[%clk 0:01:45]}  Qd5 {[%clk 0:01:05]} 28. Qxd5 {[%clk 0:01:44]}  cxd5 {[%clk 0:01:06]} 29. Nf8+ {[%clk 0:01:37]}  Rxf8 {[%clk 0:00:59]} 30. Rxe7 {[%clk 0:01:36]}  Nxe7 {[%clk 0:01:00]} 1-0


[Site "https://www.chess.com"]

[Event "Titled Tuesday Blitz July 25 Early 2023"]
[White "Veiga, Jose Francisco R P Neves"]
[Black "ChessBrah"]
[WhiteFideId "1930087"]
[WhiteElo "2598"]
[BlackElo "2924"]
[Result "0-1"]
[Round "4"]
[TimeControl "180+2"]
[Date "2023.07.25"]
[WhiteClock "0:00:02"]
[BlackClock "0:01:35"]
[Board "43"]

1. c4 {[%clk 0:02:59]}  e5 {[%clk 0:02:59]} 2. Nc3 {[%clk 0:02:55]}  Nc6 {[%clk 0:03:00]} 3. Nf3 {[%clk 0:02:55]}  f5 {[%clk 0:03:00]} 4. d3 {[%clk 0:02:53]}  Bb4 {[%clk 0:03:00]} 5. Bd2 {[%clk 0:02:51]}  Nf6 {[%clk 0:03:01]} 6. a3 {[%clk 0:02:50]}  Bxc3 {[%clk 0:03:00]} 7. Bxc3 {[%clk 0:02:51]}  d6 {[%clk 0:03:01]} 8. g3 {[%clk 0:02:47]}  O-O {[%clk 0:03:01]} 9. Bg2 {[%clk 0:02:48]}  Qe8 {[%clk 0:03:02]} 10. O-O {[%clk 0:02:48]}  Qh5 {[%clk 0:02:56]} 11. e3 {[%clk 0:02:43]}  f4 {[%clk 0:02:54]} 12. exf4 {[%clk 0:02:36]}  Bg4 {[%clk 0:02:54]} 13. f5 {[%clk 0:01:24]}  Nd7 {[%clk 0:02:37]} 14. h3 {[%clk 0:01:23]}  Bxh3 {[%clk 0:02:37]} 15. Nh4 {[%clk 0:01:22]}  Bg4 {[%clk 0:02:34]} 16. f3 {[%clk 0:01:20]}  Bxf5 {[%clk 0:02:34]} 17. Nxf5 {[%clk 0:01:14]}  Qxf5 {[%clk 0:02:32]} 18. f4 {[%clk 0:01:15]}  Qg6 {[%clk 0:02:30]} 19. Kh2 {[%clk 0:00:54]}  exf4 {[%clk 0:02:29]} 20. gxf4 {[%clk 0:00:52]}  Nf6 {[%clk 0:02:21]} 21. Qf3 {[%clk 0:00:46]}  Rae8 {[%clk 0:02:17]} 22. Rae1 {[%clk 0:00:45]}  h5 {[%clk 0:02:14]} 23. Rxe8 {[%clk 0:00:45]}  Rxe8 {[%clk 0:02:14]} 24. Bh3 {[%clk 0:00:41]}  Ng4+ {[%clk 0:02:13]} 25. Bxg4 {[%clk 0:00:28]}  hxg4 {[%clk 0:02:13]} 26. Qd5+ {[%clk 0:00:20]}  Kh7 {[%clk 0:02:13]} 27. Kg3 {[%clk 0:00:18]}  Re3+ {[%clk 0:02:12]} 28. Kf2 {[%clk 0:00:19]}  Rxd3 {[%clk 0:02:07]} 29. Rh1+ {[%clk 0:00:18]}  Rh3 {[%clk 0:02:06]} 30. f5 {[%clk 0:00:15]}  Qg5 {[%clk 0:01:56]} 31. Kg2 {[%clk 0:00:06]}  Rxh1 {[%clk 0:01:48]} 32. Kxh1 {[%clk 0:00:06]}  Ne7 {[%clk 0:01:45]} 33. Qxb7 {[%clk 0:00:05]}  Nxf5 {[%clk 0:01:41]} 34. Qxc7 {[%clk 0:00:04]}  Qc1+ {[%clk 0:01:37]} 35. Kg2 {[%clk 0:00:05]}  Qc2+ {[%clk 0:01:37]} 36. Kg1 {[%clk 0:00:04]}  Qd1+ {[%clk 0:01:38]} 37. Kg2 {[%clk 0:00:03]}  Qe2+ {[%clk 0:01:36]} 38. Kg1 {[%clk 0:00:02]}  g3 {[%clk 0:01:35]} 39. Qc6 {[%clk 0:00:02]} 0-1


[Site "https://www.chess.com"]